[Event "Rapid Tournament (RAP)"]
[Site "Biel, Switzerland"]
[Date "2026.07.12"]
[Round "4.43"]
[White "Amsellem, Daniel"]
[Black "Klopfenstein, Francois"]
[Result "0-1"]
[TimeControl "15 + 5"]
[WhiteTitle "-"]
[BlackTitle "-"]
[WhiteFideId "1363522"]
[BlackFideId "1303040"]
[WhiteElo "1650"]
[BlackElo "1815"]

1. c4 {[%clk 00:15:07]} {[%emt 00:00:02]} Nf6 {[%clk 00:15:10]} {[%emt
00:00:06]} 2. Nf3 {[%clk 00:15:09]} {[%emt 00:00:01]} g6 {[%clk 00:14:50]}
{[%emt 00:00:26]} 3. Nc3 {[%clk 00:15:12]} {[%emt 00:00:02]} Bg7 {[%clk
00:14:51]} {[%emt 00:00:04]} 4. e4 {[%clk 00:15:15]} {[%emt 00:00:03]} d6
{[%clk 00:14:48]} {[%emt 00:00:08]} 5. d4 {[%clk 00:15:17]} {[%emt 00:00:02]}
O-O {[%clk 00:14:32]} {[%emt 00:00:21]} 6. Be2 {[%clk 00:15:20]} {[%emt
00:00:02]} Nbd7 {[%clk 00:13:58]} {[%emt 00:00:40]} 7. O-O {[%clk 00:15:19]}
{[%emt 00:00:05]} c6 {[%clk 00:14:00]} {[%emt 00:00:04]} 8. h3 {[%clk
00:15:16]} {[%emt 00:00:07]} Qc7 {[%clk 00:13:26]} {[%emt 00:00:39]} 9. Be3
{[%clk 00:15:16]} {[%emt 00:00:05]} e5 {[%clk 00:13:15]} {[%emt 00:00:16]} 10.
d5 {[%clk 00:15:13]} {[%emt 00:00:08]} a6 {[%clk 00:12:52]} {[%emt 00:00:29]}
11. a4 {[%clk 00:14:44]} {[%emt 00:00:34]} c5 {[%clk 00:12:49]} {[%emt
00:00:08]} 12. Qd2 {[%clk 00:14:02]} {[%emt 00:00:46]} Ne8 {[%clk 00:07:52]}
{[%emt 00:05:02]} 13. Ng5 {[%clk 00:13:13]} {[%emt 00:00:53]} h6 {[%clk
00:07:43]} {[%emt 00:00:15]} 14. Nf3 {[%clk 00:13:16]} {[%emt 00:00:02]} Kh7
{[%clk 00:07:45]} {[%emt 00:00:04]} 15. Ne1 {[%clk 00:12:04]} {[%emt 00:01:16]}
Qd8 {[%clk 00:07:42]} {[%emt 00:00:09]} 16. Nd3 {[%clk 00:10:54]} {[%emt
00:01:15]} f5 {[%clk 00:07:40]} {[%emt 00:00:07]} 17. f3 {[%clk 00:10:54]}
{[%emt 00:00:04]} Ndf6 {[%clk 00:07:13]} {[%emt 00:00:32]} 18. b4 {[%clk
00:10:43]} {[%emt 00:00:17]} cxb4 {[%clk 00:04:39]} {[%emt 00:02:39]} 19. Nxb4
{[%clk 00:10:42]} {[%emt 00:00:05]} Nh5 {[%clk 00:04:28]} {[%emt 00:00:16]} 20.
c5 {[%clk 00:10:33]} {[%emt 00:00:15]} Ng3 {[%clk 00:04:14]} {[%emt 00:00:19]}
21. Rfc1 {[%clk 00:10:11]} {[%emt 00:00:26]} fxe4 {[%clk 00:04:05]} {[%emt
00:00:15]} 22. Nxe4 {[%clk 00:10:02]} {[%emt 00:00:13]} Nxe4 {[%clk 00:03:24]}
{[%emt 00:00:46]} 23. fxe4 {[%clk 00:10:03]} {[%emt 00:00:05]} Nf6 {[%clk
00:02:24]} {[%emt 00:01:05]} 24. Bf3 {[%clk 00:09:58]} {[%emt 00:00:09]} g5
{[%clk 00:02:07]} {[%emt 00:00:23]} 25. cxd6 {[%clk 00:10:01]} {[%emt
00:00:02]} g4 {[%clk 00:01:59]} {[%emt 00:00:13]} 26. hxg4 {[%clk 00:09:55]}
{[%emt 00:00:11]} Nxg4 {[%clk 00:02:03]} 27. Bc5 {[%clk 00:09:35]} {[%emt
00:00:25]} Qh4 {[%clk 00:02:00]} {[%emt 00:00:08]} 28. Bxg4 {[%clk 00:09:38]}
{[%emt 00:00:02]} Qxg4 {[%clk 00:02:04]} {[%emt 00:00:02]} 29. d7 {[%clk
00:09:25]} {[%emt 00:00:17]} Bxd7 {[%clk 00:02:04]} {[%emt 00:00:05]} 30. Bxf8
{[%clk 00:09:28]} {[%emt 00:00:02]} Rxf8 {[%clk 00:02:05]} {[%emt 00:00:04]} 31.
Re1 {[%clk 00:09:15]} {[%emt 00:00:17]} h5 {[%clk 00:02:00]} {[%emt 00:00:11]}
32. Qe2 {[%clk 00:09:18]} {[%emt 00:00:01]} Qg6 {[%clk 00:01:50]} {[%emt
00:00:16]} 33. Nd3 {[%clk 00:09:06]} {[%emt 00:00:16]} h4 {[%clk 00:01:37]}
{[%emt 00:00:18]} 34. Nc5 {[%clk 00:08:53]} {[%emt 00:00:18]} Bg4 {[%clk
00:01:29]} {[%emt 00:00:14]} 35. Qd3 {[%clk 00:07:58]} {[%emt 00:00:59]} h3
{[%clk 00:01:32]} {[%emt 00:00:03]} 36. Qg3 {[%clk 00:07:56]} {[%emt 00:00:06]}
hxg2 {[%clk 00:01:18]} {[%emt 00:00:19]} 37. Qxg2 {[%clk 00:07:54]} {[%emt
00:00:07]} Bh6 {[%clk 00:00:39]} {[%emt 00:00:45]} 38. Ne6 {[%clk 00:07:53]}
{[%emt 00:00:06]} Rg8 {[%clk 00:00:27]} {[%emt 00:00:17]} 39. Ra3 {[%clk
00:07:41]} {[%emt 00:00:16]} Bxe6 {[%clk 00:00:30]} {[%emt 00:00:03]} 40. Qg3
{[%emt 00:00:01]} Rg7 41. Qxg6+ Rxg6+ {[%clk 00:00:33]} 42. Kf2 {[%clk
00:07:45]} {[%emt 00:00:04]} Rf6+ {[%clk 00:00:28]} {[%emt 00:00:11]} 43. Ke2
{[%clk 00:07:45]} {[%emt 00:00:04]} Bg4+ {[%clk 00:00:30]} {[%emt 00:00:03]} 44.
Kd3 {[%clk 00:07:48]} {[%emt 00:00:02]} Rf3+ {[%clk 00:00:31]} {[%emt
00:00:05]} 45. Kc4 {[%clk 00:07:49]} {[%emt 00:00:03]} Rxa3 {[%clk 00:00:33]}
{[%emt 00:00:03]} 46. Rg1 {[%clk 00:07:38]} {[%emt 00:00:13]} Rxa4+ {[%clk
00:00:36]} {[%emt 00:00:05]} 47. Kb3 {[%clk 00:07:39]} {[%emt 00:00:05]} Rxe4
{[%clk 00:00:39]} {[%emt 00:00:02]} 48. d6 {[%clk 00:07:40]} {[%emt 00:00:03]}
Be6+ {[%clk 00:00:22]} {[%emt 00:00:22]} 49. Kc3 {[%clk 00:07:33]} {[%emt
00:00:13]} Rd4 {[%clk 00:00:26]} 50. Rb1 {[%clk 00:07:30]} {[%emt 00:00:08]} b5
{[%clk 00:00:29]} {[%emt 00:00:02]} 51. Ra1 {[%clk 00:07:25]} {[%emt 00:00:09]}
Rxd6 {[%clk 00:00:32]} {[%emt 00:00:03]} 52. Kb4 {[%clk 00:07:26]} {[%emt
00:00:04]} Bd2+ {[%clk 00:00:32]} {[%emt 00:00:04]} 53. Kc5 {[%clk 00:07:26]}
{[%emt 00:00:06]} Rd7 {[%clk 00:00:35]} {[%emt 00:00:02]} 54. Rxa6 {[%clk
00:07:10]} {[%emt 00:00:21]} Bc4 {[%clk 00:00:38]} {[%emt 00:00:02]} 55. Rf6
{[%clk 00:07:02]} {[%emt 00:00:13]} e4 {[%clk 00:00:37]} {[%emt 00:00:06]} 56.
Rf5 {[%clk 00:06:51]} {[%emt 00:00:15]} e3 {[%clk 00:00:39]} {[%emt 00:00:03]}
57. Rh5+ {[%clk 00:06:55]} {[%emt 00:00:02]} Kg6 {[%clk 00:00:43]} 58. Re5
{[%clk 00:06:46]} {[%emt 00:00:14]} Rd5+ {[%clk 00:00:44]} {[%emt 00:00:03]}
0-1

[Event "Rapid Tournament (RAP)"]
[Site "Biel, Switzerland"]
[Date "2026.07.12"]
[Round "4.44"]
[White "Schmied, Stefan"]
[Black "Thomas, Vitus"]
[Result "1-0"]
[TimeControl "15 + 5"]
[WhiteTitle "-"]
[BlackTitle "-"]
[WhiteFideId "1335804"]
[BlackFideId "1370790"]
[WhiteElo "1778"]
[BlackElo "1600"]

1. Nf3 {[%clk 00:15:08]} {[%emt 00:00:02]} d5 {[%clk 00:15:08]} {[%emt
00:00:01]} 2. e3 {[%clk 00:15:07]} {[%emt 00:00:06]} g6 {[%clk 00:15:11]}
{[%emt 00:00:02]} 3. d4 {[%clk 00:15:04]} {[%emt 00:00:09]} Nf6 {[%clk
00:15:13]} {[%emt 00:00:02]} 4. Be2 {[%clk 00:15:07]} {[%emt 00:00:02]} Bg7
{[%clk 00:15:16]} {[%emt 00:00:02]} 5. O-O {[%clk 00:15:10]} {[%emt 00:00:02]}
O-O {[%clk 00:15:16]} {[%emt 00:00:05]} 6. b3 {[%clk 00:15:14]} {[%emt
00:00:02]} Bf5 {[%clk 00:15:14]} {[%emt 00:00:07]} 7. Bb2 {[%clk 00:15:16]}
{[%emt 00:00:02]} Nbd7 {[%clk 00:15:09]} {[%emt 00:00:10]} 8. Nbd2 {[%clk
00:15:12]} {[%emt 00:00:10]} c6 {[%clk 00:15:12]} {[%emt 00:00:02]} 9. Nh4
{[%clk 00:15:01]} {[%emt 00:00:15]} Be6 {[%clk 00:15:13]} {[%emt 00:00:04]} 10.
Bd3 {[%clk 00:14:44]} {[%emt 00:00:23]} Qc7 {[%clk 00:15:13]} {[%emt 00:00:05]}
11. f4 {[%clk 00:14:12]} {[%emt 00:00:37]} c5 {[%clk 00:14:56]} {[%emt
00:00:22]} 12. Nhf3 {[%clk 00:12:53]} {[%emt 00:01:24]} Ng4 {[%clk 00:14:49]}
{[%emt 00:00:12]} 13. Re1 {[%clk 00:12:31]} {[%emt 00:00:27]} Nb6 {[%clk
00:13:11]} {[%emt 00:01:43]} 14. c4 {[%clk 00:10:07]} {[%emt 00:02:29]} dxc4
{[%clk 00:12:47]} {[%emt 00:00:28]} 15. bxc4 {[%clk 00:08:52]} {[%emt
00:01:20]} Rfd8 {[%clk 00:12:38]} {[%emt 00:00:14]} 16. Ne5 {[%clk 00:08:08]}
{[%emt 00:00:49]} Nf6 {[%clk 00:11:50]} {[%emt 00:00:53]} 17. d5 {[%clk
00:08:03]} {[%emt 00:00:10]} Bd7 {[%clk 00:11:13]} {[%emt 00:00:42]} 18. Nxd7
{[%clk 00:07:25]} {[%emt 00:00:44]} Qxd7 {[%clk 00:10:57]} {[%emt 00:00:20]} 19.
Qc2 {[%clk 00:07:10]} {[%emt 00:00:21]} Qa4 {[%clk 00:10:02]} {[%emt 00:00:59]}
20. e4 {[%clk 00:06:43]} {[%emt 00:00:33]} Qd7 {[%clk 00:09:23]} {[%emt
00:00:44]} 21. Bxf6 {[%clk 00:06:09]} {[%emt 00:00:38]} Bxf6 {[%clk 00:09:11]}
{[%emt 00:00:16]} 22. e5 {[%clk 00:06:11]} {[%emt 00:00:05]} Bg7 {[%clk
00:08:18]} {[%emt 00:00:06]} 23. Ne4 {[%clk 00:05:47]} {[%emt 00:01:20]} Rac8
{[%clk 00:08:00]} {[%emt 00:00:24]} 24. Rad1 {[%clk 00:04:20]} {[%emt
00:01:31]} Qa4 {[%clk 00:07:13]} {[%emt 00:00:52]} 25. Qxa4 {[%clk 00:03:47]}
{[%emt 00:00:39]} Nxa4 {[%clk 00:07:15]} {[%emt 00:00:03]} 26. Re2 {[%clk
00:03:16]} {[%emt 00:00:35]} f5 {[%clk 00:06:29]} {[%emt 00:00:51]} 27. Ng5
{[%clk 00:03:14]} {[%emt 00:00:08]} Nc3 {[%clk 00:06:29]} {[%emt 00:00:04]} 28.
Rc1 {[%clk 00:02:40]} {[%emt 00:00:39]} Nxe2+ {[%clk 00:06:29]} {[%emt
00:00:05]} 29. Bxe2 {[%clk 00:02:44]} {[%emt 00:00:02]} h6 {[%clk 00:05:26]}
{[%emt 00:01:07]} 30. Ne6 {[%clk 00:02:48]} {[%emt 00:00:02]} Rd7 {[%clk
00:05:24]} {[%emt 00:00:06]} 31. Rb1 {[%clk 00:02:26]} {[%emt 00:00:27]} b6
{[%clk 00:05:27]} {[%emt 00:00:03]} 32. Kf2 {[%clk 00:02:26]} {[%emt 00:00:05]}
g5 {[%clk 00:04:35]} {[%emt 00:00:57]} 33. g3 {[%clk 00:02:22]} {[%emt
00:00:08]} g4 {[%clk 00:04:33]} {[%emt 00:00:07]} 34. Bd1 {[%clk 00:02:21]}
{[%emt 00:00:07]} Rb7 {[%clk 00:04:01]} {[%emt 00:00:36]} 35. Ba4 {[%clk
00:02:24]} {[%emt 00:00:02]} a6 {[%clk 00:03:59]} {[%emt 00:00:07]} 36. Bc6
{[%clk 00:02:25]} {[%emt 00:00:04]} Rcb8 {[%clk 00:03:26]} {[%emt 00:00:39]} 37.
Bxb7 {[%clk 00:02:22]} {[%emt 00:00:08]} Rxb7 {[%clk 00:03:29]} {[%emt
00:00:01]} 38. a4 {[%clk 00:02:27]} a5 {[%clk 00:03:12]} {[%emt 00:00:22]} 39.
Ke3 {[%clk 00:02:19]} {[%emt 00:00:13]} Kf7 {[%clk 00:03:09]} {[%emt 00:00:04]}
40. Nd8+ {[%clk 00:02:22]} {[%emt 00:00:06]} 1-0

[Event "Rapid Tournament (RAP)"]
[Site "Biel, Switzerland"]
[Date "2026.07.12"]
[Round "4.45"]
[White "Liengme, Samuel"]
[Black "Cousin, Ismael"]
[Result "1-0"]
[TimeControl "15 + 5"]
[WhiteTitle "-"]
[BlackTitle "-"]
[WhiteFideId "1368141"]
[BlackFideId "1364561"]
[WhiteElo "1967"]
[BlackElo "1588"]

1. e4 {[%clk 00:15:09]} {[%emt 00:00:01]} e5 {[%clk 00:15:09]} {[%emt
00:00:03]} 2. Nf3 {[%clk 00:15:12]} Nf6 {[%clk 00:15:13]} {[%emt 00:00:01]} 3.
Nc3 {[%clk 00:15:15]} {[%emt 00:00:02]} Bb4 {[%clk 00:15:17]} {[%emt 00:00:02]}
4. Bc4 {[%clk 00:14:51]} {[%emt 00:00:28]} Nc6 {[%clk 00:15:20]} {[%emt
00:00:02]} 5. d3 {[%clk 00:14:51]} {[%emt 00:00:05]} O-O {[%clk 00:15:14]}
{[%emt 00:00:11]} 6. O-O {[%clk 00:14:53]} {[%emt 00:00:02]} Bxc3 {[%clk
00:15:17]} {[%emt 00:00:02]} 7. bxc3 {[%clk 00:14:55]} {[%emt 00:00:03]} d6
{[%clk 00:15:21]} {[%emt 00:00:01]} 8. Bg5 {[%clk 00:14:45]} {[%emt 00:00:15]}
h6 {[%clk 00:15:21]} {[%emt 00:00:06]} 9. Bh4 {[%clk 00:14:48]} {[%emt
00:00:02]} Bg4 {[%clk 00:15:10]} {[%emt 00:00:15]} 10. Rb1 {[%clk 00:14:43]}
{[%emt 00:00:10]} Na5 {[%clk 00:15:06]} {[%emt 00:00:10]} 11. Bb3 {[%clk
00:14:15]} {[%emt 00:00:33]} Nxb3 {[%clk 00:14:04]} {[%emt 00:01:07]} 12. Rxb3
{[%clk 00:14:02]} {[%emt 00:00:17]} b6 {[%clk 00:14:08]} {[%emt 00:00:01]} 13.
Re1 {[%clk 00:13:50]} {[%emt 00:00:17]} Qe7 {[%clk 00:14:12]} {[%emt 00:00:01]}
14. h3 {[%clk 00:12:58]} {[%emt 00:00:57]} Bh5 {[%clk 00:14:15]} {[%emt
00:00:02]} 15. g4 {[%clk 00:11:08]} {[%emt 00:01:54]} Bg6 {[%clk 00:14:14]}
{[%emt 00:00:07]} 16. Qd2 {[%clk 00:10:48]} {[%emt 00:00:25]} Qe6 {[%clk
00:13:59]} {[%emt 00:00:20]} 17. Qe3 {[%clk 00:09:38]} {[%emt 00:01:15]} Nd7
{[%clk 00:13:07]} {[%emt 00:00:58]} 18. d4 {[%clk 00:09:23]} {[%emt 00:00:19]}
exd4 {[%clk 00:13:04]} {[%emt 00:00:08]} 19. Nxd4 {[%clk 00:08:58]} {[%emt
00:00:30]} Qc4 {[%clk 00:12:10]} {[%emt 00:00:59]} 20. Nf5 {[%clk 00:08:07]}
{[%emt 00:00:56]} Bxf5 {[%clk 00:10:56]} {[%emt 00:01:20]} 21. gxf5 {[%clk
00:07:51]} {[%emt 00:00:19]} Rfe8 {[%clk 00:10:49]} {[%emt 00:00:13]} 22. Kh2
{[%clk 00:07:51]} {[%emt 00:00:04]} Nc5 {[%clk 00:10:52]} {[%emt 00:00:03]} 23.
Rb4 {[%clk 00:07:52]} {[%emt 00:00:04]} Qxa2 {[%clk 00:10:46]} {[%emt
00:00:11]} 24. Rg1 {[%clk 00:07:44]} {[%emt 00:00:12]} Kf8 {[%clk 00:09:20]}
{[%emt 00:01:32]} 25. f6 {[%clk 00:07:09]} {[%emt 00:00:40]} g5 {[%clk
00:08:52]} {[%emt 00:00:33]} 26. Bxg5 {[%clk 00:07:02]} {[%emt 00:00:12]} Re6
{[%clk 00:08:31]} {[%emt 00:00:26]} 27. Bxh6+ {[%clk 00:06:58]} {[%emt
00:00:09]} Ke8 {[%clk 00:08:35]} {[%emt 00:00:01]} 28. Rg8+ {[%emt 00:00:13]}
Kd7 {[%emt 00:00:01]} 29. Rxa8 {[%clk 00:06:53]} {[%emt 00:00:01]} Qxc2 {[%clk
00:08:41]} {[%emt 00:00:04]} 30. Rxa7 {[%clk 00:06:32]} {[%emt 00:00:26]} Nxe4
{[%clk 00:08:29]} {[%emt 00:00:17]} 31. Qxb6 {[%clk 00:04:41]} {[%emt
00:01:57]} Qxf2+ 32. Qxf2 {[%clk 00:04:44]} Nxf2 {[%clk 00:08:36]} {[%emt
00:00:01]} 33. Rbb7 {[%clk 00:04:39]} {[%emt 00:00:10]} Rxf6 {[%clk 00:08:34]}
{[%emt 00:00:07]} 34. Rxc7+ {[%clk 00:04:43]} {[%emt 00:00:02]} Ke6 {[%clk
00:08:38]} 35. Re7+ {[%clk 00:04:41]} {[%emt 00:00:06]} Kd5 {[%clk 00:08:39]}
{[%emt 00:00:05]} 36. Rxf7 {[%clk 00:04:26]} {[%emt 00:00:19]} Ng4+ {[%clk
00:08:36]} {[%emt 00:00:08]} 37. hxg4 {[%clk 00:04:29]} {[%emt 00:00:02]} Rxh6+
{[%clk 00:08:40]} 1-0

[Event "Rapid Tournament (RAP)"]
[Site "Biel, Switzerland"]
[Date "2026.07.12"]
[Round "4.46"]
[White "Huettinger, Jonathan"]
[Black "Javet, Blaise"]
[Result "0-1"]
[TimeControl "15 + 5"]
[WhiteTitle "-"]
[BlackTitle "-"]
[WhiteFideId "1366750"]
[BlackFideId "1305026"]
[WhiteElo "1704"]
[BlackElo "1980"]

1. e4 {[%clk 00:15:07]} {[%emt 00:00:02]} c6 {[%clk 00:13:41]} {[%emt
00:01:29]} 2. d4 {[%clk 00:15:09]} {[%emt 00:00:03]} d5 {[%clk 00:13:44]}
{[%emt 00:00:02]} 3. exd5 {[%clk 00:15:03]} {[%emt 00:00:11]} cxd5 {[%clk
00:13:44]} {[%emt 00:00:05]} 4. Bd3 {[%clk 00:15:03]} {[%emt 00:00:04]} Nf6
{[%clk 00:13:27]} {[%emt 00:00:23]} 5. Nf3 {[%clk 00:15:05]} {[%emt 00:00:04]}
Bg4 {[%clk 00:13:24]} {[%emt 00:00:07]} 6. O-O {[%clk 00:15:05]} {[%emt
00:00:05]} e6 {[%clk 00:13:28]} 7. Bf4 {[%clk 00:14:40]} {[%emt 00:00:31]} Bd6
{[%clk 00:13:26]} {[%emt 00:00:07]} 8. Bg5 {[%clk 00:14:17]} {[%emt 00:00:28]}
Be7 {[%clk 00:13:29]} {[%emt 00:00:02]} 9. Nbd2 {[%clk 00:14:16]} {[%emt
00:00:05]} Nc6 {[%clk 00:13:31]} {[%emt 00:00:04]} 10. c3 {[%clk 00:14:19]}
{[%emt 00:00:02]} O-O {[%clk 00:13:34]} {[%emt 00:00:02]} 11. h3 {[%clk
00:14:12]} {[%emt 00:00:13]} Bh5 {[%clk 00:13:37]} {[%emt 00:00:02]} 12. Re1
{[%clk 00:13:52]} {[%emt 00:00:24]} Re8 {[%clk 00:13:13]} {[%emt 00:00:29]} 13.
Qb3 {[%clk 00:13:44]} {[%emt 00:00:13]} Qc7 {[%clk 00:12:16]} {[%emt 00:01:03]}
14. Ne5 {[%clk 00:13:36]} {[%emt 00:00:13]} Nxe5 {[%clk 00:11:44]} {[%emt
00:00:36]} 15. Rxe5 {[%clk 00:13:37]} {[%emt 00:00:05]} Bg6 {[%clk 00:11:34]}
{[%emt 00:00:14]} 16. Bxg6 {[%clk 00:13:14]} {[%emt 00:00:28]} hxg6 {[%clk
00:11:38]} {[%emt 00:00:02]} 17. Qc2 {[%clk 00:13:02]} {[%emt 00:00:16]} Nd7
{[%clk 00:10:49]} {[%emt 00:00:55]} 18. Bxe7 {[%clk 00:12:19]} {[%emt
00:00:47]} Nxe5 {[%clk 00:10:48]} {[%emt 00:00:07]} 19. Bh4 {[%clk 00:11:59]}
{[%emt 00:00:25]} Nc6 {[%clk 00:10:29]} {[%emt 00:00:24]} 20. Nf3 {[%clk
00:11:46]} {[%emt 00:00:17]} b5 {[%clk 00:09:43]} {[%emt 00:00:51]} 21. a3
{[%clk 00:11:43]} {[%emt 00:00:09]} a5 {[%clk 00:09:46]} {[%emt 00:00:02]} 22.
Bg3 {[%clk 00:11:39]} {[%emt 00:00:09]} Qd7 {[%clk 00:09:36]} {[%emt 00:00:14]}
23. Qe2 {[%clk 00:11:07]} {[%emt 00:00:37]} Qb7 {[%clk 00:09:22]} {[%emt
00:00:19]} 24. Ne5 {[%clk 00:09:53]} {[%emt 00:01:19]} Nxe5 {[%clk 00:08:59]}
{[%emt 00:00:28]} 25. Bxe5 {[%clk 00:09:55]} {[%emt 00:00:03]} b4 {[%clk
00:08:55]} {[%emt 00:00:10]} 26. axb4 {[%clk 00:09:40]} {[%emt 00:00:20]} axb4
{[%clk 00:08:58]} {[%emt 00:00:01]} 27. Rxa8 {[%clk 00:08:48]} {[%emt
00:00:58]} Rxa8 {[%clk 00:09:01]} {[%emt 00:00:02]} 28. Bd6 {[%clk 00:08:42]}
{[%emt 00:00:10]} bxc3 {[%clk 00:08:57]} {[%emt 00:00:10]} 29. bxc3 {[%clk
00:08:44]} {[%emt 00:00:03]} Qb1+ {[%clk 00:08:41]} {[%emt 00:00:21]} 30. Kh2
{[%clk 00:08:44]} {[%emt 00:00:04]} Ra2 {[%clk 00:08:32]} {[%emt 00:00:15]} 31.
Qe3 {[%clk 00:08:23]} {[%emt 00:00:25]} Qf1 {[%clk 00:07:19]} {[%emt 00:01:18]}
32. Qg5 {[%clk 00:08:16]} {[%emt 00:00:12]} Qxf2 {[%clk 00:05:44]} {[%emt
00:01:41]} 33. Qd8+ {[%clk 00:07:55]} {[%emt 00:00:25]} Kh7 {[%clk 00:05:47]}
{[%emt 00:00:02]} 34. Qg5 {[%clk 00:07:57]} {[%emt 00:00:03]} Rc2 {[%clk
00:03:47]} {[%emt 00:02:05]} 35. Bb4 {[%clk 00:07:08]} {[%emt 00:00:54]} f6
{[%clk 00:02:33]} {[%emt 00:01:19]} 36. Qg4 {[%clk 00:07:00]} {[%emt 00:00:13]}
Qf5 {[%clk 00:02:26]} {[%emt 00:00:12]} 37. Qh4+ {[%clk 00:06:38]} {[%emt
00:00:27]} Kg8 {[%clk 00:02:29]} {[%emt 00:00:02]} 38. Qg3 {[%clk 00:06:15]}
{[%emt 00:00:28]} g5 {[%clk 00:02:27]} {[%emt 00:00:07]} 39. Qb8+ {[%clk
00:05:57]} {[%emt 00:00:23]} Kh7 {[%clk 00:02:30]} {[%emt 00:00:02]} 40. Qc7
{[%clk 00:05:29]} {[%emt 00:00:33]} Qf4+ {[%clk 00:02:16]} {[%emt 00:00:19]} 41.
Qxf4 {[%clk 00:05:27]} {[%emt 00:00:07]} gxf4 {[%clk 00:02:20]} {[%emt
00:00:02]} 42. Kg1 {[%clk 00:05:14]} {[%emt 00:00:17]} Kg6 {[%clk 00:02:23]}
{[%emt 00:00:02]} 43. Kf1 {[%clk 00:04:49]} {[%emt 00:00:31]} Kf5 {[%clk
00:02:26]} {[%emt 00:00:01]} 44. Kg1 {[%clk 00:04:28]} {[%emt 00:00:26]} g5
{[%clk 00:02:23]} {[%emt 00:00:08]} 45. Kf1 {[%clk 00:04:23]} {[%emt 00:00:10]}
Ke4 {[%clk 00:02:26]} {[%emt 00:00:02]} 46. Be7 {[%clk 00:04:23]} {[%emt
00:00:05]} Kf5 {[%clk 00:02:21]} {[%emt 00:00:10]} 47. Bb4 {[%clk 00:04:26]}
{[%emt 00:00:02]} e5 {[%clk 00:02:24]} {[%emt 00:00:02]} 48. Kg1 {[%clk
00:04:13]} {[%emt 00:00:19]} exd4 {[%clk 00:02:09]} {[%emt 00:00:20]} 49. cxd4
{[%clk 00:04:16]} {[%emt 00:00:02]} Ke4 {[%clk 00:02:08]} {[%emt 00:00:06]} 50.
Be7 {[%clk 00:04:16]} {[%emt 00:00:05]} Kf5 {[%clk 00:01:57]} {[%emt 00:00:16]}
51. Bc5 {[%clk 00:04:17]} {[%emt 00:00:03]} Ke6 {[%clk 00:01:57]} {[%emt
00:00:05]} 52. Kf1 {[%clk 00:04:19]} {[%emt 00:00:03]} f5 {[%clk 00:02:01]}
{[%emt 00:00:02]} 53. Bb6 {[%clk 00:04:18]} {[%emt 00:00:06]} g4 {[%clk
00:01:32]} {[%emt 00:00:34]} 54. h4 {[%clk 00:04:13]} {[%emt 00:00:10]} g3
{[%clk 00:01:18]} {[%emt 00:00:18]} 55. h5 {[%clk 00:03:46]} {[%emt 00:00:32]}
Rf2+ {[%clk 00:01:20]} {[%emt 00:00:04]} 56. Kg1 {[%clk 00:03:43]} {[%emt
00:00:08]} Rb2 {[%clk 00:01:20]} {[%emt 00:00:04]} 57. Ba5 {[%clk 00:02:52]}
{[%emt 00:00:57]} Rb1+ {[%clk 00:01:22]} {[%emt 00:00:02]} 58. Be1 {[%clk
00:02:53]} {[%emt 00:00:05]} Rxe1# {[%clk 00:01:24]} {[%emt 00:00:02]} 0-1